Cogmind - Beta 9.6 @@@ ROGUE MODE // 2020.05.12 @ 15:36:14 Player: 3.14 Result: Destroyed by P-80 Master with Gamma Rifle Performance ------------- Evolutions (9) 4500 Regions Visited (26) 5200 Robots Destroyed (526) 2630 Value Destroyed (27641) 27641 Prototype IDs (49) 980 Alien Tech Used (16) 3200 Bonus (25690) 25690 TOTAL SCORE: 69841 Bonus ------- Triggered Max Security 2000 High Alert Combat Kills 8905 Follower Combat Kills 4922 Network Hubs Disabled 200 Met Zhirov 300 Built Enhanced Grunts 300 Met R17 at Cetus 500 Found Hidden Lab 3000 Used Core Reset Matrix 3000 Met R17 at Research 2000 Met Sigix 2000 Activated Exoskeleton 3000 Friendly Fire -4437 Cogmind --------- Core Integrity 0/1600 Matter 300/300 Energy 170/170 System Corruption 0% Temperature Cool (0) Movement Core (200) Ox3 Location -1/Access Parts ------- > --- POWER (3) -------- Light Antimatter Reactor > --- PROPULSION (6) --- (None) > --- UTILITY (14) ----- Experimental Signal Interpreter Improved Core Analyzer > --- WEAPON (3) ------- (None) > --- INVENTORY (4) ---- (None) Peak State ------------ > --- POWER ------------ Quantum Reactor Light Quantum Reactor Improved Quantum Reactor > --- PROPULSION ------- Enhanced Armored Heavy Treads Enhanced Armored Heavy Treads Enhanced Armored Heavy Treads > --- UTILITY ---------- High-capacity Storage Unit High-capacity Storage Unit High-capacity Storage Unit Advanced Sensor Array Experimental Signal Interpreter Advanced Target Analyzer Improved Core Analyzer Quantum Capacitor Experimental Powered Armor Heavy Regenerative Plating Advanced Force Field Quantum Router > --- WEAPON ----------- Sigix Quantum Sheargun Sigix Broadsword > --- INVENTORY -------- Reinforced Antimatter Reactor Particle Reactor Light Quantum Reactor Enhanced Armored Heavy Treads Enhanced Armored Heavy Treads Improved Energy Well Improved Energy Well Advanced Energy Well Medium Reflective Plating EM Dispersion Field Transdimensional Reconstructor Subatomic Replicator Gamma Rifle Advanced Variable Charge Gun Enhanced Nova Cannon Enhanced Nova Cannon Long-range Missile Launcher Fusion Bomb Launcher [Rating: 227] Favorites ----------- Power Quantum Reactor Engine Reinforced Deuterium Engine Power Core Fission Core Reactor Quantum Reactor Propulsion Centrium Heavy Treads Treads Centrium Heavy Treads Leg Carbon-fiber Leg Utility High-capacity Storage Unit Device Advanced Cooling System Storage High-capacity Storage Unit Processor Improved Core Analyzer Hackware Advanced Hacking Suite Protection Improved Light Armor Plating Artifact Phase Armor Weapon Matter Neutralizer Energy Gun Tesla Rifle Energy Cannon Matter Neutralizer Ballistic Gun Assault Rifle Launcher Proton Missile Launcher Impact Weapon Core Stripper Slashing Weapon Sigix Broadsword Piercing Weapon Makeshift Spear Build | -11 -10 -10 -10 -9 -8 -7 -7 -7 -6 -6 -6 -6 -6 -5 -5 -5 -5 -4 -4 -3 -3 -3 -2 -2 -2 -1 ------- Run | Scr Mat Min Exi Min Mat Fac Low Low Fac Ext Cet Arc Hub Fac Upp Upp Zhi Pro Fac Res Arm Lab Res Qua Sec Acc Slots Evolved 18 | . . . . . 4 2 . . 2 . . . . 2 . . . . 2 2 . . 2 . . 2 Power 2 | . . . . . . . . . 1 . . . . . . . . . 1 . . . . . . . Propulsion 4 | . . . . . 1 1 . . . . . . . . . . . . . . . . 2 . . . Utility 11 | . . . . . 3 1 . . 1 . . . . 2 . . . . 1 2 . . . . . 1 Weapon 1 | . . . . . . . . . . . . . . . . . . . . . . . . . . 1 Parts Attached 583 | 6 6 2 1 13 18 75 15 1 53 25 19 12 3 42 2 2 13 9 6 14 . 9 38 51 113 35 Power 55 | 1 1 . . 2 4 7 2 . 6 3 1 . . 1 . . 2 . 1 1 . . 3 4 11 5 Engine 21 | 1 1 . . 2 3 6 1 . 4 3 . . . . . . . . . . . . . . . . Core 5 | . . . . . 1 1 1 . 2 . . . . . . . . . . . . . . . . . Reactor 29 | . . . . . . . . . . . 1 . . 1 . . 2 . 1 1 . . 3 4 11 5 Propulsion 66 | 2 . 1 . 3 1 20 6 . 8 5 3 . . 2 . . 2 . . 1 . . 3 . 5 4 Treads 65 | 2 . 1 . 3 1 20 5 . 8 5 3 . . 2 . . 2 . . 1 . . 3 . 5 4 Leg 1 | . . . . . . . 1 . . . . . . . . . . . . . . . . . . . Wheel . | . . . . . . . . . . . . . . . . . . . . . . . . . . . Hover . | . . . . . . . . . . . . . . . . . . . . . . . . . . . Flight . | . . . . . . . . . . . . . . . . . . . . . . . . . . . Utility 203 | 1 2 . 1 . 3 12 1 . 9 5 5 8 1 20 2 . 6 2 5 8 . 4 14 32 57 5 Device 114 | . . . . . 1 4 . . 3 1 3 3 . 15 1 . 3 2 2 4 . 2 8 22 37 3 Storage 14 | 1 2 . 1 . 1 2 . . 3 . . 1 . 2 . . . . . . . . . . 1 . Processor 7 | . . . . . . 1 . . 1 . . . . 1 1 . . . . 1 . . . 2 . . Hackware 4 | . . . . . . . . . . 2 . . . . . . . . . . . . . 1 1 . Protection 63 | . . . . . 1 5 1 . 2 2 2 4 1 2 . . 3 . 3 3 . 2 6 6 18 2 Artifact 1 | . . . . . . . . . . . . . . . . . . . . . . . . 1 . . Weapon 259 | 2 3 1 . 8 10 36 6 1 30 12 10 4 2 19 . 2 3 7 . 4 . 5 18 15 40 21 Energy Gun 91 | 1 . . . 4 3 11 3 1 15 6 4 2 1 7 . . 1 1 . . . 1 . 1 19 10 Energy Cannon 93 | . . . . 1 . 8 . . 8 2 3 2 . 10 . 2 . 5 . 3 . 4 15 13 17 . Ballistic Gun 25 | 1 3 1 . 2 7 10 . . . . 1 . . . . . . . . . . . . . . . Ballistic Cannon . | . . . . . . . . . . . . . . . . . . . . . . . . . . . Launcher 29 | . . . . . . 3 2 . 5 3 1 . 1 1 . . 1 1 . 1 . . 1 . 2 7 Special Weapon . | . . . . . . . . . . . . . . . . . . . . . . . . . . . Impact Weapon 1 | . . . . . . . . . . . . . . . . . . . . . . . . 1 . . Slashing Weapon 13 | . . . . 1 . . . . . 1 1 . . 1 . . 1 . . . . . 2 . 2 4 Piercing Weapon 7 | . . . . . . 4 1 . 2 . . . . . . . . . . . . . . . . . Special Melee Weapon . | . . . . . . . . . . . . . . . . . . . . . . . . . . . Unidentified Prototypes 39 | . . . . . 2 1 . . . 2 4 2 . . . . 4 . 1 1 1 4 2 7 8 . Parts Lost 33 | . 1 . . 5 1 9 . . 2 . . . . 1 . . . . . . . . . 1 5 8 Power 3 | . . . . 1 . 1 . . . . . . . . . . . . . . . . . . 1 . Propulsion 8 | . . . . . . 4 . . . . . . . . . . . . . . . . . . . 4 Utility 11 | . . . . . . 1 . . 1 . . . . 1 . . . . . . . . . 1 4 3 Weapon 11 | . 1 . . 4 1 3 . . 1 . . . . . . . . . . . . . . . . 1 Highest Loss Streak 7 | . 1 . . 2 1 3 . . 1 . . . . 1 . . . . . . . . . 1 1 7 Average Slot Usage (%) 88 | . 99 100 100 94 97 99 94 100 99 100 88 85 86 87 88 88 87 88 85 86 90 84 79 81 79 64 Engine 4 | . 14 14 14 13 6 5 1 7 8 6 6 6 6 5 5 5 2 . . . . . . . . . Core 1 | . . . . . 1 1 5 . 3 6 4 . . . . . . . . . . . . . . . Reactor 5 | . . . . . . . . . . . 1 6 6 5 5 5 7 11 15 14 14 13 12 10 9 8 Treads 17 | . 28 28 28 28 27 29 30 30 26 26 15 13 13 11 11 11 11 11 10 9 9 9 12 12 12 10 Device 11 | . . . . . 7 8 7 7 11 8 8 18 13 16 17 17 16 17 15 17 19 16 15 13 9 8 Storage 17 | . 27 28 28 28 27 23 23 23 20 20 20 20 20 17 17 17 17 17 15 14 14 13 12 12 12 8 Processor 8 | . . . . . . 5 7 7 6 6 6 6 6 10 11 11 11 11 10 10 14 13 12 12 12 10 Hackware 1 | . . . . . . . . . . 4 4 . . . . . . . . . . . . 3 6 2 Protection 5 | . . . . . 9 6 6 7 7 6 6 1 6 5 5 5 5 5 6 10 9 10 8 4 6 5 Energy Gun 3 | . 5 . . 12 . 5 2 10 7 7 6 6 12 3 5 5 5 . . . . . . . 3 1 Energy Cannon 4 | . . . . 1 . 4 . . 4 3 4 6 . 5 5 5 3 5 10 8 9 7 4 7 3 . Ballistic Gun 2 | . 22 28 28 7 17 4 . . . . . . . . . . . . . . . . . . . . Naked Turns . | . . . . . . . . . . . . . . . . . . . . . . . . . . . Heaviest Build 241 | 10 39 39 38 43 69 108 101 103 140 139 155 164 161 170 161 161 164 173 200 214 201 220 232 241 236 224 Greatest Support 240 | 40 40 40 40 46 69 90 85 85 98 108 160 160 160 160 160 160 160 160 160 160 150 150 240 240 240 240 Greatest Overweight (x) 3 | . . . . 1 . 1 1 1 1 1 1 1 1 1 1 1 1 1 1 1 1 1 1 1 1 3 Average Overweight (x) . | . . . . . . . 1 1 1 1 . . . . . 1 . 1 1 1 1 1 . . . . Largest Inventory Capacity 28 | 6 16 16 16 16 22 26 26 26 28 28 28 28 28 28 28 28 28 28 28 28 28 28 28 28 28 28 Average Capacity 26 | 5 15 16 16 16 21 24 26 26 26 28 28 28 28 28 28 28 28 28 28 28 28 28 28 28 28 23 Most Carried 28 | 4 16 16 16 16 22 26 26 26 28 28 28 28 28 28 28 28 28 28 28 28 27 28 28 28 28 27 Average Carried 24 | 2 11 15 16 13 19 23 25 26 25 27 27 27 28 27 27 27 27 27 27 27 27 27 26 27 26 16 Final Capacity 28 | 6 16 16 16 16 22 26 26 26 28 28 28 28 28 28 28 28 28 28 28 28 28 28 28 28 28 4 Final Carried 28 | 4 16 16 16 14 22 26 26 26 28 28 28 28 28 28 28 28 28 28 28 27 27 28 28 26 26 . Class Distribution -------------------- 33% | Scavenger-Mutant 28% | Generator-Mutant 18% | Hauler-Mutant 9% | Alien-Mutant 8% | Mutant Dominant Class ---------------- Mutant | -10/Materials Mutant | -10/Mines Mutant | -10/Exiles Mutant | -9/Mines Hauler-Mutant | -8/Materials Hauler-Mutant | -7/Factory Hauler-Mutant | -7/Lower Caves Hauler-Mutant | -7/Lower Caves Scavenger-Mutant | -6/Factory Commander-Mutant | -6/Extension Scavenger-Mutant | -6/Cetus Scavenger-Mutant | -6/Archives Scavenger-Mutant | -6/Hub_04(d) Scavenger-Mutant | -5/Factory Scavenger-Mutant | -5/Upper Caves Scavenger-Mutant | -5/Upper Caves Scavenger-Mutant | -5/Zhirov Scavenger-Mutant | -4/Proximity Caves Generator-Mutant | -4/Factory Generator-Mutant | -3/Research Generator-Mutant | -3/Armory Generator-Mutant | -3/Lab Generator-Mutant | -2/Research Generator-Mutant | -2/Quarantine Generator-Mutant | -2/Section 7 Alien-Mutant | -1/Access Resources | -11 -10 -10 -10 -9 -8 -7 -7 -7 -6 -6 -6 -6 -6 -5 -5 -5 -5 -4 -4 -3 -3 -3 -2 -2 -2 -1 ----------- Run | Scr Mat Min Exi Min Mat Fac Low Low Fac Ext Cet Arc Hub Fac Upp Upp Zhi Pro Fac Res Arm Lab Res Qua Sec Acc Matter Collected 8463 | 262 157 93 12 152 366 1178 214 26 751 345 244 183 73 446 28 20 100 180 60 166 . . 350 745 1388 924 Remotely . | . . . . . . . . . . . . . . . . . . . . . . . . . . . Salvage Created 28466 | 83 337 88 . 298 591 3005 337 50 3073 1592 456 71 341 1954 141 297 123 636 475 1123 . . 1786 1862 5678 4069 Parts 1185 | 2 36 5 . 7 28 157 12 2 112 65 21 7 15 94 4 12 . 29 23 36 . . 67 51 258 142 Haulers Intercepted 18 | . 1 . . . . 4 . . 3 2 . . 1 1 . . . . . . . . 4 1 . 1 Recyclers Shooed 24 | . 4 . . . 1 5 . . 3 . . . 1 4 . . . . . . . . 2 1 . 3 Parts Field Recycled . | . . . . . . . . . . . . . . . . . . . . . . . . . . . Retrieved Matter . | . . . . . . . . . . . . . . . . . . . . . . . . . . . Parts Self-Destructed 27 | . . . . . . . 3 2 . . . . . . 1 1 . 20 . . . . . . . . Prevented 37 | . . . . . . . 11 . . . . . . . 2 11 . 13 . . . . . . . . Kills | -11 -10 -10 -10 -9 -8 -7 -7 -7 -6 -6 -6 -6 -6 -5 -5 -5 -5 -4 -4 -3 -3 -3 -2 -2 -2 -1 ------- Run | Scr Mat Min Exi Min Mat Fac Low Low Fac Ext Cet Arc Hub Fac Upp Upp Zhi Pro Fac Res Arm Lab Res Qua Sec Acc Combat Hostiles Destroyed 402 | . 9 6 . 11 10 40 5 1 38 19 5 . 1 23 1 5 . 10 11 15 . . 24 32 70 66 Melee 15 | . . . . 2 . 7 . . 1 . . . . . . . . . . . . . . . 4 1 Guns 114 | . 8 6 . 6 10 17 2 . 8 5 . . 1 6 . 1 . . . . . . . . 20 24 Cannons 110 | . . . . 3 . 6 . . 6 1 . . . 11 1 2 . 3 11 12 . . 10 29 15 . AOE 111 | . 1 . . . . 6 2 1 16 12 . . . 3 . 2 . 4 . 3 . . 13 2 8 38 Classes Destroyed 26 | 1 5 . . 4 3 3 . . . 1 . . . . . . . 2 . . . . 2 1 2 2 Worker 18 | . 1 . . . . 4 . . 4 2 . . 2 . . . . . . 1 . . 1 . 2 1 Builder 25 | . . . . . . 2 . . 4 3 . . 1 4 . . . . . 1 . . 2 2 1 5 Tunneler 2 | . . . . . . . . . . . . . . . . . . . . . . . 2 . . . Hauler 18 | . 1 . . . . 4 . . 3 2 . . 1 1 . . . . . . . . 4 1 . 1 Recycler 24 | 1 1 . . . 1 7 . . 5 2 . . 1 2 . . . . . . . . 1 1 . 2 Carrier 1 | . . . . . . . . . . . . . . . . . . 1 . . . . . . . . Mechanic 6 | . . . . . . . . . . . . . . . . . . . . . . . 1 . . 5 Operator 4 | . 1 . . . . . . . . . . 2 . 1 . . . . . . . . . . . . Watcher 19 | . 1 . . . . 3 . . 4 . . . . 4 . . . . . . . . 4 1 2 . Swarmer 58 | . 9 6 . . . 7 . . 10 7 . . . . . 1 . 4 4 . . . . . 7 3 Saboteur 4 | . . . . . . . . . . . . . . . . . . . . . . . . . . 4 Grunt 139 | . . . . 2 6 18 3 . 17 6 . . . 7 1 1 . 3 3 7 . . 10 6 21 28 Brawler 14 | . . . . . 1 . 1 . 2 . . . . . . . . . . 1 . . 1 . 2 6 Duelist 9 | . . . . 1 . . . . . . . . . . . . . . . . . . 1 . 2 5 Protector 7 | . . . . . . 1 . . . 1 . . . . . . . . . . . . . . 1 4 Researcher 1 | . . . . . . . . . . . . . . . . . . . . . . . . . 1 . Sentry 32 | . . . . . 2 6 . . 3 3 . . . 5 . 1 . . 2 2 . . 3 . 5 . Demolisher 1 | . . . . 1 . . . . . . . . . . . . . . . . . . . . . . Specialist 2 | . . . . . . . . . . 1 . . . . . . . . . . . . . 1 . . Hunter 48 | . . . . . 1 2 1 1 3 1 . . 1 6 . 2 . 2 . 5 . . 6 11 4 2 Programmer 60 | . . . . . . 6 . . 3 . . . . 5 . . . . 2 . . . 3 13 19 9 Behemoth 3 | . . . . . . . . . . . . . . . . . . 1 . . . . . . 2 . Cetus Guard 5 | . . . . . . . . . . . 5 . . . . . . . . . . . . . . . S7 Guard 3 | . . . . . . . . . . . . . . . . . . . . . . . . . 3 . Investigator 1 | . . . . . . . . . . . . . . . . . . . . . . . . . . 1 Striker 4 | . . . . . . . . . . . . . . . . . . . . . . . . . . 4 Executioner 5 | . . . . . . . . . . . . . . . . . . . . . . . . . 4 1 Fortress 1 | . . . . . . . . . . . . . . . . . . . . . . . . 1 . . Decomposer 1 | . . . . . . . 1 . . . . . . . . . . . . . . . . . . . Packrat 1 | . . . . . . . . . . . . . . . 1 . . . . . . . . . . . Assembled 7 | . . . . 7 . . . . . . . . . . . . . . . . . . . . . . Thug 1 | . . . . . . . . . . 1 . . . . . . . . . . . . . . . . Savage 1 | . . . . . . . . . . 1 . . . . . . . . . . . . . . . . Best Kill Streak 29 | 1 3 3 . 5 3 12 4 1 10 13 3 1 4 5 1 3 . 4 4 8 . . 6 6 8 29 Combat Bots Only 21 | . 3 3 . 5 3 7 4 1 7 9 3 . 1 4 1 3 . 4 4 6 . . 4 4 7 21 Max Kills in Single Turn 5 | 1 1 2 . 1 1 5 2 1 3 3 1 1 2 2 1 2 . 4 1 3 . . 3 1 5 4 Gunslinging 1 | . . 1 . . . 1 . . . . . . . . . . . . . . . . . . . . Exploded 4 | . 1 . . . . 2 2 1 2 2 . . . 2 . 2 . 4 . 3 . . 2 1 4 4 Melee 1 | . . . . 1 . 1 . . 1 . . . . . . . . . . . . . . . 1 1 Uniques/NPCs Destroyed 1 | . . . . . . . . . . . 1 . . . . . . . . . . . . . . . A7 (-6/Cetus) Combat | -11 -10 -10 -10 -9 -8 -7 -7 -7 -6 -6 -6 -6 -6 -5 -5 -5 -5 -4 -4 -3 -3 -3 -2 -2 -2 -1 -------- Run | Scr Mat Min Exi Min Mat Fac Low Low Fac Ext Cet Arc Hub Fac Upp Upp Zhi Pro Fac Res Arm Lab Res Qua Sec Acc Damage Taken 27028 | . 265 177 . 1160 428 3444 321 . 1760 531 185 79 117 1612 . 280 . 433 293 415 27 . 761 1799 5220 7721 Core 2805 | . 23 6 . 216 15 356 18 . 127 90 30 12 . 56 . 10 . 35 . 14 . . 40 429 165 1163 Absorbed by Shields 13154 | . . . . . . . . . 284 321 179 83 123 1330 . 271 . 442 309 440 29 . 777 1574 5398 1594 Reduced by Siege Mode 266 | . . . . . . . . . . . . . . 29 . . . 22 . . . . . 33 182 . Redirected to Core 304 | . . . . . . . . . . . . . . . . . . . . . . . . 304 . . Core Remaining (%) 72 | 100 . . . 2 97 . . 46 . . . . 69 . . . . 89 100 . . 90 . . 56 . Volleys Fired 1182 | 2 39 13 . 22 27 132 12 1 101 42 12 22 7 85 2 14 . 20 27 45 1 3 44 104 198 207 Largest 2 | 2 2 2 . 2 2 2 2 2 2 2 2 2 2 2 2 2 . 2 2 2 2 2 2 2 2 1 Hottest 240 | 60 60 40 . 90 73 145 100 100 180 140 140 160 160 180 140 140 . 203 203 203 125 125 210 225 240 100 Shots Fired 1956 | 4 78 26 . 34 50 247 14 2 168 68 19 23 10 168 4 28 . 40 54 88 2 4 51 189 378 207 Gun 1098 | 4 78 26 . 27 50 187 11 2 107 38 7 23 8 60 2 14 . 12 . . . . . . 264 178 Cannon 763 | . . . . 7 . 51 . . 39 18 6 . . 106 2 14 . 27 54 86 2 4 51 189 107 . Launcher 95 | . . . . . . 9 3 . 22 12 6 . 2 2 . . . 1 . 2 . . . . 7 29 Special . | . . . . . . . . . . . . . . . . . . . . . . . . . . . Kinetic 243 | 2 55 26 . 13 46 101 . . . . . . . . . . . . . . . . . . . . Thermal 727 | . . . . 7 . 51 . . 30 . . 23 8 100 . . . 15 54 86 2 4 51 189 107 . Explosive 54 | . . . . . . 1 . . 10 . . . 2 2 . . . 1 . 2 . . . . 7 29 Electromagnetic 775 | 2 23 . . 14 4 94 14 2 128 68 19 . . 66 4 28 . 24 . . . . . . 256 29 Slashing 157 | . . . . . . . . . . . . . . . . . . . . . . . . . 8 149 Robot Hit Streak 41 | 3 10 3 . 17 13 18 12 5 27 7 13 8 4 17 10 8 . 22 8 14 . . 15 21 41 14 Robot Miss Streak 7 | . 4 3 . 5 2 4 2 1 3 2 1 7 . 2 . 2 . 6 3 4 . . 2 3 5 4 Penetration Max 1 | . . . . . 1 . . . . . . . . . . . . . . . . . . . 1 1 Secondary Targets 19 | . 1 3 . 2 . 5 . . . 1 . . 1 . . . . . . . . . . . 6 . Max Gunslinging Chain 1 | . 1 1 . 1 . 1 . . . 1 . . 1 . . . . . . . . . . . 1 . Capacitor 178 | . . . . . . . . . . . . . . . . . . . . . . . . . . 178 Shots Hit Robots 1429 | 3 43 14 . 31 38 192 10 2 126 41 21 11 3 121 3 18 2 34 32 61 . . 42 129 295 157 Core Hits 1021 | 2 23 6 . 20 21 106 13 2 100 56 18 8 8 53 2 9 1 17 18 40 . . 48 76 142 232 Critical Hits 133 | . . 1 . . 2 3 1 . 6 5 . . . 9 . 2 . 4 5 3 . . 20 17 29 26 Critical Kills 43 | . . . . . 1 2 1 . 2 . . . . 2 . 1 . 1 2 . . . 5 8 13 5 Critical Parts Destroyed 67 | . . 1 . . 1 1 . . 3 5 . . . 6 . . . 3 3 2 . . 13 7 7 15 Melee Attacks 112 | . . . . 12 . 19 4 . 4 . 9 . . 15 . . 2 . . . . . . 4 28 15 Kinetic 4 | . . . . . . . . . . . . . . . . . . . . . . . . 4 . . Impact . | . . . . . . . . . . . . . . . . . . . . . . . . . . . Slashing 81 | . . . . 12 . . . . . . 9 . . 15 . . 2 . . . . . . . 28 15 Piercing 27 | . . . . . . 19 4 . 4 . . . . . . . . . . . . . . . . . Sneak Attacks 19 | . . . . . . 1 1 . . . 9 . . 4 . . . . . . . . . . 1 3 Combat Hostiles . | . . . . . . . . . . . . . . . . . . . . . . . . . . . Follow-up Attacks . | . . . . . . . . . . . . . . . . . . . . . . . . . . . Damage Inflicted 76346 | 32 509 190 . 513 784 5272 527 96 5451 2668 1466 413 569 5676 96 505 347 1085 1249 2409 . . 9531 6704 11652 18602 Guns 19919 | 32 446 189 . 258 776 2651 176 31 2040 566 144 413 104 1178 57 251 . 221 . . . . . . 5182 5204 Cannons 22244 | . . . . 71 . 991 . . 839 399 162 . . 3023 35 158 . 617 1249 1879 . . 5007 5663 2151 . Explosions 28050 | . 22 . . . . 1073 244 65 2497 1703 320 . 407 756 . 96 . 247 . 469 . . 4507 854 2366 12424 Melee 5616 | . . . . 179 . 511 107 . 24 . 840 . . 591 . . 347 . . . . . . 120 1949 948 Ramming 517 | . 41 1 . 5 8 46 . . 51 . . . 58 128 4 . . . . 61 . . 17 67 4 26 Kinetic 2628 | 19 319 189 . 92 702 1187 . . . . . . . . . . . . . . . . . 120 . . Thermal 29046 | . 22 . . 71 . 1116 . 65 1193 621 . 413 104 3351 . 96 . 352 1249 1879 . . 9514 6517 2483 . Explosive 16999 | . . . . . . 229 . . 1262 . . . 45 289 . . . 247 . 469 . . . . 2034 12424 Electromagnetic 16708 | 13 127 . . 166 74 2183 420 31 2921 2047 626 . 362 1317 92 409 . 486 . . . . . . 4845 589 Impact . | . . . . . . . . . . . . . . . . . . . . . . . . . . . Slashing 9806 | . . . . 179 . . . . . . 840 . . 591 . . 347 . . . . . . . 2286 5563 Piercing 642 | . . . . . . 511 107 . 24 . . . . . . . . . . . . . . . . . Highest Corruption 9 | . . . . 5 6 5 5 5 6 6 6 6 2 9 4 . . . 1 . . . 3 6 2 . Average Corruption 3 | . . . . 5 1 1 5 5 4 6 6 4 2 6 2 . . . 1 . . . 2 3 1 . Corruption Purged 30 | . . . . . . . . . . . . 6 . 5 4 . . . . . . . 3 9 3 . Effects 269 | . . . . 7 5 22 22 6 31 34 15 27 . 34 7 . . . . . . . 3 50 6 . Message Errors 75 | . . . . . 2 6 4 1 9 7 4 7 . 9 5 . . . . . . . . 20 1 . Matter Fused 52 | . . . . 1 1 3 6 3 4 7 1 10 . 3 1 . . . . . . . . 12 . . Heat Flow Errors 23 | . . . . 1 . 1 2 1 2 3 2 4 . 3 . . . . . . . . . 4 . . Energy Discharges 34 | . . . . 1 . 4 2 . 5 4 2 . . 8 1 . . . . . . . 1 3 3 . Parts Rejected 1 | . . . . . . . . . . . . . . 1 . . . . . . . . . . . . Data Loss (minor) 36 | . . . . 1 2 2 5 1 3 4 3 2 . 2 . . . . . . . . 2 7 2 . Data Loss (major) 8 | . . . . . . 1 . . . 4 2 1 . . . . . . . . . . . . . . Misfires 9 | . . . . 1 . . . . 2 2 1 1 . 1 . . . . . . . . . 1 . . Targeting Errors 26 | . . . . 1 . 5 2 . 4 3 . 1 . 7 . . . . . . . . . 3 . . Weapon Failures 5 | . . . . 1 . . 1 . 2 . . 1 . . . . . . . . . . . . . . Overload Shots . | . . . . . . . . . . . . . . . . . . . . . . . . . . . Overflow Damage 3504 | . . . . 14 . 16 . . 118 15 203 . 2 368 . . 166 10 32 35 . . 903 282 650 690 Projectiles 1055 | . . . . . . 14 . . 10 6 . . . 219 . . . 10 32 14 . . 432 206 112 . Explosions 1546 | . . . . . . 2 . . 108 9 . . . . . . . . . . . . 471 47 244 665 Melee 903 | . . . . 14 . . . . . . 203 . 2 149 . . 166 . . 21 . . . 29 294 25 Knockbacks 2 | . . . . . . . . . . . . . . . . . . . . . . . . 2 . . Impact 2 | . . . . . . . . . . . . . . . . . . . . . . . . 2 . . Kinetic . | . . . . . . . . . . . . . . . . . . . . . . . . . . . Secondary . | . . . . . . . . . . . . . . . . . . . . . . . . . . . Self-Inflicted Damage 362 | . . . . . . 15 8 . 131 40 . . 85 54 . . . . . . . . 6 . 11 12 Shots 13 | . . . . . . 1 2 . 3 2 . . 1 2 . . . . . . . . 1 . 1 . Rammed 39 | . 5 1 . 1 1 3 . . 3 . . . 4 8 1 . . . . 1 . . 1 2 1 7 Targets Rammed 40 | . 5 1 . 1 1 3 . . 3 . . . 4 8 1 . . . . 1 . . 2 2 1 7 Kicked . | . . . . . . . . . . . . . . . . . . . . . . . . . . . Crushed 1 | . . . . . . . . . . . . . . . . . . . . . . . 1 . . . Highest Temperature 330 | 20 60 . . 117 22 196 253 212 330 257 211 219 60 248 27 132 . 3 176 92 . . 90 161 9 85 Average Temperature 46 | 15 30 . . 31 8 37 104 111 56 49 57 95 29 65 18 64 . 3 53 49 . . 22 73 6 49 Received Heat Transfer 3427 | . . . . 112 216 819 54 . 371 85 . 12 8 262 . 4 . 42 73 52 5 . 84 91 784 353 Siege Activations 7 | . . . . . . . . . . . . . . 2 . . . 1 . . . . . 1 3 . Total Turns 284 | . . . . . . . . . . . . . . 81 . . . 20 . . . . . 26 157 . Longest Duration 70 | . . . . . . . . . . . . . . 61 . . . 20 . . . . . 26 70 . Robots Corrupted 54 | . . . . . . 6 1 . 9 1 5 . 1 3 . . . 3 . . . . . . 23 2 Combat Hostiles 49 | . . . . . . 4 1 . 7 1 5 . . 3 . . . 3 . . . . . . 23 2 Parts Fried 149 | . . . . . 1 20 4 . 30 11 4 . . 8 . 4 . 3 . . . . . 1 59 4 Impact Corruptions 5 | . . . . . . . . . . . . . 1 1 . . . . . 1 . . . 2 . . Robots Melted 1 | . . . . . . . . . . . . . . . . . . . . . . . 1 . . . Combat Hostiles 1 | . . . . . . . . . . . . . . . . . . . . . . . 1 . . . Parts Melted 34 | . . . . . . 2 . . 3 1 . . . 2 . . . 1 2 10 . . 6 3 4 . Heat Transferred 25906 | . 50 . . 148 . 1523 . 50 1400 751 . 518 148 2766 . 50 . 370 1221 2534 . . 6863 5797 1717 . Parts Sabotaged . | . . . . . . . . . . . . . . . . . . . . . . . . . . . Parts Stolen . | . . . . . . . . . . . . . . . . . . . . . . . . . . . Parts Stripped . | . . . . . . . . . . . . . . . . . . . . . . . . . . . Power Chain Reactions 22 | . 1 . . . . 3 . 1 6 7 . . . 2 . 1 . . . . . . . . 1 . Missiles Intercepted . | . . . . . . . . . . . . . . . . . . . . . . . . . . . Alert | -11 -10 -10 -10 -9 -8 -7 -7 -7 -6 -6 -6 -6 -6 -5 -5 -5 -5 -4 -4 -3 -3 -3 -2 -2 -2 -1 ------- Run | Scr Mat Min Exi Min Mat Fac Low Low Fac Ext Cet Arc Hub Fac Upp Upp Zhi Pro Fac Res Arm Lab Res Qua Sec Acc Peak Influence 5630 | 5 250 178 . 60 173 901 . . 737 1452 897 555 996 671 . . . . 474 563 292 . 1012 832 1600 5630 Average Influence 576 | . 96 115 . 28 96 521 . . 409 736 767 305 271 309 . . . . 265 386 289 . 607 416 501 3952 Maximum Alert Level 5 | . 1 . . . . 3 . . 3 4 3 2 3 2 . . . . 2 2 1 . 3 3 5 5 Low Security (%) 23 | 100 88 100 . 100 100 9 . . 1 . . 20 56 43 . . . . 30 . . . 14 4 15 . Level 1 24 | . 11 . . . . 20 . . 51 6 . 54 22 17 . . . . 49 60 100 . 8 49 13 . Level 2 34 | . . . . . . 46 . . 43 59 24 24 9 38 . . . . 19 39 . . 29 41 50 . Level 3 12 | . . . . . . 24 . . 3 17 75 . 11 . . . . . . . . . 47 5 20 . Level 4 . | . . . . . . . . . . 16 . . . . . . . . . . . . . . . 2 Level 5 . | . . . . . . . . . . . . . . . . . . . . . . . . . . . High Security . | . . . . . . . . . . . . . . . . . . . . . . . . . . . Max Security 4 | . . . . . . . . . . . . . . . . . . . . . . . . . . 97 Squads Dispatched 127 | . . . . . . 13 . . 10 8 . . 6 8 . . . . 2 6 . . 4 11 12 47 Investigation 8 | . . . . . . 2 . . 1 1 . . . 1 . . . . . 2 . . . . 1 . Extermination 24 | . . . . . . 3 . . 4 . . . . 2 . . . . 1 . . . 2 6 6 . Reinforcement 29 | . . . . . . 3 . . 5 4 . . 3 1 . . . . 1 4 . . . 4 3 1 Assault 54 | . . . . . . 1 . . . 3 . . 3 . . . . . . . . . 2 . 2 43 Garrison 12 | . . . . . . 4 . . . . . . . 4 . . . . . . . . . 1 . 3 Intercept . | . . . . . . . . . . . . . . . . . . . . . . . . . . . Construction Impeded 14 | . . . . . . 2 . . 2 3 . . 1 1 . . . . 1 . . . . 2 1 1 Haulers Reinforced 4 | . . . . . . . . . 2 . . . . . . . . . . 1 . . . . 1 . Stealth | -11 -10 -10 -10 -9 -8 -7 -7 -7 -6 -6 -6 -6 -6 -5 -5 -5 -5 -4 -4 -3 -3 -3 -2 -2 -2 -1 --------- Run | Scr Mat Min Exi Min Mat Fac Low Low Fac Ext Cet Arc Hub Fac Upp Upp Zhi Pro Fac Res Arm Lab Res Qua Sec Acc Distress Signals 24 | . 2 . . . 2 2 . . 2 1 2 . . 1 . . . . . 6 . . 2 2 1 1 Communications Jammed 47 | . . . . . . . . . . . . . . . . . . . . . . . 47 . . . Distress Signals 47 | . . . . . . . . . . . . . . . . . . . . . . . 47 . . . Times Spotted 766 | . 18 7 . 20 21 55 5 1 51 56 11 20 10 42 . 6 . 10 11 20 3 . 35 50 99 215 Peak Tracking Total 31 | . 6 3 . 8 4 6 4 1 7 11 5 2 6 5 . 3 . 4 4 4 3 . 5 4 11 31 Tactical Retreats 32 | . . 1 . 1 1 5 . . 4 1 . . . 4 . 1 . . . . . . 2 . 2 10 Traps | -11 -10 -10 -10 -9 -8 -7 -7 -7 -6 -6 -6 -6 -6 -5 -5 -5 -5 -4 -4 -3 -3 -3 -2 -2 -2 -1 ------- Run | Scr Mat Min Exi Min Mat Fac Low Low Fac Ext Cet Arc Hub Fac Upp Upp Zhi Pro Fac Res Arm Lab Res Qua Sec Acc Traps Triggered 13 | . . . . . 1 2 . . 1 . . . . 1 . . . . . . 1 . . 2 4 1 Indirectly . | . . . . . . . . . . . . . . . . . . . . . . . . . . . Trap Hack Attempts . | . . . . . . . . . . . . . . . . . . . . . . . . . . . Triggered . | . . . . . . . . . . . . . . . . . . . . . . . . . . . Disarmed . | . . . . . . . . . . . . . . . . . . . . . . . . . . . Reprogrammed . | . . . . . . . . . . . . . . . . . . . . . . . . . . . Reused . | . . . . . . . . . . . . . . . . . . . . . . . . . . . Traps Extracted . | . . . . . . . . . . . . . . . . . . . . . . . . . . . Installed . | . . . . . . . . . . . . . . . . . . . . . . . . . . . Triggered 4 | . . . . . . . 1 . 2 . . . . . . . . . . . . . . . . 1 Machines | -11 -10 -10 -10 -9 -8 -7 -7 -7 -6 -6 -6 -6 -6 -5 -5 -5 -5 -4 -4 -3 -3 -3 -2 -2 -2 -1 ---------- Run | Scr Mat Min Exi Min Mat Fac Low Low Fac Ext Cet Arc Hub Fac Upp Upp Zhi Pro Fac Res Arm Lab Res Qua Sec Acc Machines Disabled 62 | . . . . . 2 3 . . 5 2 1 2 9 6 . . . . 3 2 1 1 5 5 11 4 Max in Single Turn 9 | . . . . . 2 1 . . 2 1 . 1 9 3 . . . . 1 1 1 1 2 1 2 1 Garrison Access 2 | . . . . . . . . . . . . . . . . . . . . . . . 1 . 1 . Network Hub 1 | . . . . . . . . . . . . . 1 . . . . . . . . . . . . . Energy Cycler 1 | . . . . . . . . . . . . . . . . . . . . . . . . . . 1 Machines Sabotaged . | . . . . . . . . . . . . . . . . . . . . . . . . . . . Garrisons Compromised . | . . . . . . . . . . . . . . . . . . . . . . . . . . . Overloaded Fab Kills . | . . . . . . . . . . . . . . . . . . . . . . . . . . . Fab Network Shutdowns 1 | . . . . . . 1 . . . . . . . . . . . . . . . . . . . . Hacking | -11 -10 -10 -10 -9 -8 -7 -7 -7 -6 -6 -6 -6 -6 -5 -5 -5 -5 -4 -4 -3 -3 -3 -2 -2 -2 -1 --------- Run | Scr Mat Min Exi Min Mat Fac Low Low Fac Ext Cet Arc Hub Fac Upp Upp Zhi Pro Fac Res Arm Lab Res Qua Sec Acc Machines Accessed 81 | . 6 . 1 . 4 6 . . 7 6 4 . 3 11 . . 4 . . 1 . 1 2 11 14 . Terminals 61 | . 5 . . . 3 3 . . 5 6 4 . 3 9 . . . . . . . . 1 10 12 . Fabricators 2 | . . . . . . 1 . . 1 . . . . . . . . . . . . . . . . . Repair Stations 7 | . . . . . . 1 . . 1 . . . . 2 . . . . . 1 . . . 1 1 . Recycling Units 2 | . 1 . . . . 1 . . . . . . . . . . . . . . . . . . . . Scanalyzers 1 | . . . . . 1 . . . . . . . . . . . . . . . . . . . . . Garrison Access 2 | . . . . . . . . . . . . . . . . . . . . . . . 1 . 1 . Total Hacks 272 | . 15 . 1 . 12 21 . . 17 17 10 . 11 51 . . 17 . . 4 . 2 4 31 59 . Successful 150 | . 9 . 1 . 9 13 . . 11 5 2 . 8 23 . . 17 . . 1 . 2 3 16 30 . Failed 122 | . 6 . . . 3 8 . . 6 12 8 . 3 28 . . . . . 3 . . 1 15 29 . Catastrophic 28 | . . . . . . 1 . . 2 2 5 . . 3 . . . . . 1 . . 1 6 7 . Database Lockouts . | . . . . . . . . . . . . . . . . . . . . . . . . . . . Manual 127 | . 13 . . . 5 4 . . 10 8 8 . 10 21 . . . . . . . . 1 18 29 . Terminals 208 | . 13 . . . 6 12 . . 13 17 10 . 11 42 . . . . . . . . 3 27 54 . Fabricators 6 | . . . . . . 3 . . 3 . . . . . . . . . . . . . . . . . Repair Stations 26 | . . . . . . 4 . . 1 . . . . 9 . . . . . 4 . . . 4 4 . Recycling Units 4 | . 2 . . . . 2 . . . . . . . . . . . . . . . . . . . . Scanalyzers 6 | . . . . . 6 . . . . . . . . . . . . . . . . . . . . . Garrison Access 2 | . . . . . . . . . . . . . . . . . . . . . . . 1 . 1 . Terminal Hacks 85 | . 4 . 1 . 2 4 . . 6 5 2 . 3 10 . . 17 . . . . 2 1 10 18 . Record 9 | . . . 1 . . . . . . . . . . . . . 5 . . . . 2 . 1 . . Part Schematic 8 | . 1 . . . 1 . . . 1 . . . . 1 . . 4 . . . . . . . . . Robot Analysis 7 | . 2 . . . 1 . . . . . . . . . . . 4 . . . . . . . . . Prototype ID Bank 6 | . . . . . . 1 . . . . . . . . . . 4 . . . . . . . 1 . Open Door 8 | . . . . . . . . . 1 3 . . . . . . . . . . . . . 1 3 . Level Access Points 1 | . . . . . . . . . . . . . . . . . . . . . . . . . 1 . Branch Access Points 2 | . . . . . . . . . 1 . . . . 1 . . . . . . . . . . . . Emergency Access Points 1 | . . . . . . . . . . . . . . . . . . . . . . . . . 1 . Terminal Index 6 | . 1 . . . . 1 . . 1 . . . 1 1 . . . . . . . . . 1 . . Alert Level 1 | . . . . . . . . . . . . . . . . . . . . . . . . . 1 . Unreport Threat 22 | . . . . . . 2 . . 2 2 2 . . 4 . . . . . . . . . 5 5 . Locate Traps 2 | . . . . . . . . . . . . . . 1 . . . . . . . . 1 . . . Dispatch Records 1 | . . . . . . . . . . . . . . . . . . . . . . . . . 1 . Recall Assault 1 | . . . . . . . . . . . . . . . . . . . . . . . . . 1 . Hauler Manifests 2 | . . . . . . . . . . . . . . . . . . . . . . . . . 2 . Zone Layout 7 | . . . . . . . . . . . . . 2 2 . . . . . . . . . 2 1 . Activate Exoskeleton 1 | . . . . . . . . . . . . . . . . . . . . . . . . . 1 . Fabricator Hacks 5 | . . . . . . 3 . . 2 . . . . . . . . . . . . . . . . . Load Schematic 2 | . . . . . . 1 . . 1 . . . . . . . . . . . . . . . . . Build 3 | . . . . . . 2 . . 1 . . . . . . . . . . . . . . . . . Repair Station Hacks 13 | . . . . . . 4 . . . . . . . 5 . . . . . 1 . . . 1 2 . Scan Component 8 | . . . . . . 2 . . . . . . . 3 . . . . . 1 . . . 1 1 . Repair 5 | . . . . . . 2 . . . . . . . 2 . . . . . . . . . . 1 . Recycling Unit Hacks . | . . . . . . . . . . . . . . . . . . . . . . . . . . . Scanalyzer 6 | . . . . . 6 . . . . . . . . . . . . . . . . . . . . . Insert Component 2 | . . . . . 2 . . . . . . . . . . . . . . . . . . . . . Analyze 4 | . . . . . 4 . . . . . . . . . . . . . . . . . . . . . Garrison Access Hacks 2 | . . . . . . . . . . . . . . . . . . . . . . . 1 . 1 . Seal Access 2 | . . . . . . . . . . . . . . . . . . . . . . . 1 . 1 . Unauthorized Hacks 39 | . 5 . . . 1 2 . . 3 . . . 5 8 . . . . . . . . 1 5 9 . Terminals 37 | . 3 . . . 1 2 . . 3 . . . 5 8 . . . . . . . . 1 5 9 . Track 7 | . . . . . . . . . . . . . 1 2 . . . . . . . . . 2 2 . Assimilate 1 | . . . . . . . . . . . . . 1 . . . . . . . . . . . . . Botnet 26 | . 2 . . . 1 2 . . 3 . . . 2 6 . . . . . . . . 1 3 6 . Disrupt 1 | . . . . . . . . . . . . . . . . . . . . . . . . . 1 . Operators 2 | . 1 . . . . . . . . . . . 1 . . . . . . . . . . . . . Fabricators . | . . . . . . . . . . . . . . . . . . . . . . . . . . . Repair Stations . | . . . . . . . . . . . . . . . . . . . . . . . . . . . Recycling Units 2 | . 2 . . . . . . . . . . . . . . . . . . . . . . . . . Reject 1 | . 1 . . . . . . . . . . . . . . . . . . . . . . . . . Recyclers 1 | . 1 . . . . . . . . . . . . . . . . . . . . . . . . . Scanalyzers . | . . . . . . . . . . . . . . . . . . . . . . . . . . . Garrison Access . | . . . . . . . . . . . . . . . . . . . . . . . . . . . Data Cores Recovered 1 | . . . . . . . . . . . . . 1 . . . . . . . . . . . . . Used . | . . . . . . . . . . . . . . . . . . . . . . . . . . . Hacking Detections 64 | . 5 . . . 4 5 . . 7 6 4 . 3 11 . . . . . 1 . . 1 8 9 . Full Trace Events 5 | . . . . . . 2 . . 1 1 . . . 1 . . . . . . . . . . . . Feedback Events . | . . . . . . . . . . . . . . . . . . . . . . . . . . . Feedback Blocked . | . . . . . . . . . . . . . . . . . . . . . . . . . . . Robot Schematics Acquired . | . . . . . . . . . . . . . . . . . . . . . . . . . . . Robots Built . | . . . . . . . . . . . . . . . . . . . . . . . . . . . Matter . | . . . . . . . . . . . . . . . . . . . . . . . . . . . Time . | . . . . . . . . . . . . . . . . . . . . . . . . . . . Total Robot Build Rating . | . . . . . . . . . . . . . . . . . . . . . . . . . . . Part Schematics Acquired 10 | . 1 . . . 3 . . . 1 . . . . 1 . . 4 . . . . . . . . . Parts Built 4 | . . . . . . 2 . . 2 . . . . . . . . . . . . . . . . . Matter 350 | . . . . . . 204 . . 146 . . . . . . . . . . . . . . . . . Time 175 | . . . . . . 102 . . 73 . . . . . . . . . . . . . . . . . Total Part Build Rating 8 | . . . . . . 2 . . 6 . . . . . . . . . . . . . . . . . Parts Repaired 5 | . . . . . . 2 . . . . . . . 2 . . . . . . . . . . 1 . Time 320 | . . . . . . 76 . . . . . . . 190 . . . . . . . . . . 54 . Parts Recycled . | . . . . . . . . . . . . . . . . . . . . . . . . . . . Recycled Matter . | . . . . . . . . . . . . . . . . . . . . . . . . . . . Retrieved Matter . | . . . . . . . . . . . . . . . . . . . . . . . . . . . Retrieved Components . | . . . . . . . . . . . . . . . . . . . . . . . . . . . Parts Scanalyzed 2 | . . . . . 2 . . . . . . . . . . . . . . . . . . . . . Part Schematics Acquired 2 | . . . . . 2 . . . . . . . . . . . . . . . . . . . . . Parts Damaged . | . . . . . . . . . . . . . . . . . . . . . . . . . . . Bothacking | -11 -10 -10 -10 -9 -8 -7 -7 -7 -6 -6 -6 -6 -6 -5 -5 -5 -5 -4 -4 -3 -3 -3 -2 -2 -2 -1 ------------ Run | Scr Mat Min Exi Min Mat Fac Low Low Fac Ext Cet Arc Hub Fac Upp Upp Zhi Pro Fac Res Arm Lab Res Qua Sec Acc Used RIF Installer . | . . . . . . . . . . . . . . . . . . . . . . . . . . . Robots Hacked . | . . . . . . . . . . . . . . . . . . . . . . . . . . . Non-combat . | . . . . . . . . . . . . . . . . . . . . . . . . . . . Combat . | . . . . . . . . . . . . . . . . . . . . . . . . . . . Robot Hacks Applied . | . . . . . . . . . . . . . . . . . . . . . . . . . . . Relay Couplers Released 3 | . . . . . . 3 . . . . . . . . . . . . . . . . . . . . Programmers 3 | . . . . . . 3 . . . . . . . . . . . . . . . . . . . . Robots Rewired 11 | . . . . . . . . . . 11 . . . . . . . . . . . . . . . . Allies Hacked 1 | . . . . . . . . . . 1 . . . . . . . . . . . . . . . . Hacks Repelled . | . . . . . . . . . . . . . . . . . . . . . . . . . . . Allies | -11 -10 -10 -10 -9 -8 -7 -7 -7 -6 -6 -6 -6 -6 -5 -5 -5 -5 -4 -4 -3 -3 -3 -2 -2 -2 -1 -------- Run | Scr Mat Min Exi Min Mat Fac Low Low Fac Ext Cet Arc Hub Fac Upp Upp Zhi Pro Fac Res Arm Lab Res Qua Sec Acc Total Allies 29 | . . . . 2 . . . . . 15 5 . . . . . . . . . . . . . 1 6 Largest Group 14 | . . . . 2 . . . . . 14 6 5 4 1 . . . . . . . . . . 1 3 Highest-Rated Group 1075 | . . . . 56 . . . . . 548 626 470 376 68 . . . . . . . . . . 1075 1075 Highest-Rated Ally 1075 | . . . . 31 . . . . . 156 156 94 94 68 . . . . . . . . . . 1075 1075 Total Orders 5 | . . . . . . . . . . . 4 . . . . . . . . . . . 1 . . . STAY 1 | . . . . . . . . . . . 1 . . . . . . . . . . . . . . . GOTO 1 | . . . . . . . . . . . 1 . . . . . . . . . . . . . . . FOLLOW 2 | . . . . . . . . . . . 2 . . . . . . . . . . . . . . . EXPLORE 1 | . . . . . . . . . . . . . . . . . . . . . . . 1 . . . Ally Attacks 544 | . . . . 1 . . . . . 251 39 18 57 4 . . . . . . . . . . 1 173 Total Damage 19785 | . . . . 21 . . . . . 5914 1075 754 2118 146 . . . . . . . . . . 59 9698 Kills 128 | . . . . . . . . . . 46 12 4 13 1 . . . . . . . . . . . 52 Allies Corrupted . | . . . . . . . . . . . . . . . . . . . . . . . . . . . Allies Melted 1 | . . . . . . . . . . . . . 1 . . . . . . . . . . . . . Intel | -11 -10 -10 -10 -9 -8 -7 -7 -7 -6 -6 -6 -6 -6 -5 -5 -5 -5 -4 -4 -3 -3 -3 -2 -2 -2 -1 ------- Run | Scr Mat Min Exi Min Mat Fac Low Low Fac Ext Cet Arc Hub Fac Upp Upp Zhi Pro Fac Res Arm Lab Res Qua Sec Acc Robot Analysis Total 7 | . 2 . . . 1 . . . . . . . . . . . 4 . . . . . . . . . Derelict Logs Recovered 11 | . . 2 . 1 . . . 1 . . . . . . 3 2 . 2 . . . . . . . . Drone Launches 2 | . . . . . . . . . . . . . . . . . . . . . . . 2 . . . Drone Recoveries . | . . . . . . . . . . . . . . . . . . . . . . . . . . . Exploration | -11 -10 -10 -10 -9 -8 -7 -7 -7 -6 -6 -6 -6 -6 -5 -5 -5 -5 -4 -4 -3 -3 -3 -2 -2 -2 -1 ------------- Run | Scr Mat Min Exi Min Mat Fac Low Low Fac Ext Cet Arc Hub Fac Upp Upp Zhi Pro Fac Res Arm Lab Res Qua Sec Acc Turns Passed 25488 | 84 771 388 309 651 750 2228 691 130 1855 1203 563 1518 366 1868 914 419 340 614 368 732 49 277 1008 2805 3572 1015 Spaces Moved 10982 | 42 389 214 193 322 388 915 345 71 756 469 260 180 203 776 300 185 178 295 146 324 26 143 477 1461 1337 587 Core 268 | 1 . . . . . . . . . . . . . . . . . . . . . . . . . 267 Treads 10714 | 41 389 214 193 322 388 915 345 71 756 469 260 180 203 776 300 185 178 295 146 324 26 143 477 1461 1337 320 Legs . | . . . . . . . . . . . . . . . . . . . . . . . . . . . Wheels . | . . . . . . . . . . . . . . . . . . . . . . . . . . . Hover . | . . . . . . . . . . . . . . . . . . . . . . . . . . . Flight . | . . . . . . . . . . . . . . . . . . . . . . . . . . . Fastest Speed 50 | 50 160 160 160 160 160 148 178 178 178 182 160 160 160 160 160 180 160 180 180 172 172 172 155 160 150 50 Average Speed 164 | 157 160 160 160 166 160 164 178 178 181 185 163 165 160 169 178 180 171 180 180 177 172 172 158 160 160 111 Slowest Speed 200 | 160 160 160 160 180 160 175 178 178 185 187 182 180 180 180 180 180 180 180 180 180 172 172 180 180 178 200 Overloaded Moves . | . . . . . . . . . . . . . . . . . . . . . . . . . . . Propulsion Burnouts . | . . . . . . . . . . . . . . . . . . . . . . . . . . . Robots Hopped . | . . . . . . . . . . . . . . . . . . . . . . . . . . . Cave-ins Triggered . | . . . . . . . . . . . . . . . . . . . . . . . . . . . Teleports 10 | . . . . . . . . . . . . . . . . . . . . . 1 . . 2 3 4 Exploration Rate (%) 41 | 4 61 47 59 51 30 21 51 15 19 58 69 78 20 26 47 34 60 42 7 11 2 93 23 90 65 27 Regions Visited 26 Branch Regions 17 Pre-discovered Areas 10 | . . 1 1 1 . . . 1 . . . . . . 2 . 3 1 . . . . . . . . Known Exits Taken 10 | . . . . . . . . . 1 . . . . 1 . . . 1 1 1 1 1 1 1 1 . Unknown Exits Taken 16 | 1 1 1 1 1 1 1 1 1 . 1 1 1 1 . 1 1 1 . . . . . . . . . Scrap Searched 12 | . . 1 . 1 . . 2 . . . . . . . 3 2 . 3 . . . . . . . . Spaces Dug 78 | . . . . . . 1 2 . 25 2 . . 3 12 . . . . . . . . . 14 18 1 Terrain Destroyed 1165 | . 3 . . . 1 19 2 3 114 17 . . 208 131 . 4 . 17 6 5 . . 199 55 121 260 Melee 17 | . . . . . . 1 2 . 2 . . . . 10 . . . . . . . . . . 1 1 Projectile 124 | . . . . . 1 3 . . 8 . . . 3 24 . . . 3 6 5 . . 4 38 25 4 AOE 1024 | . 3 . . . . 15 . 3 104 17 . . 205 97 . 4 . 14 . . . . 195 17 95 255 Actions | -11 -10 -10 -10 -9 -8 -7 -7 -7 -6 -6 -6 -6 -6 -5 -5 -5 -5 -4 -4 -3 -3 -3 -2 -2 -2 -1 --------- Run | Scr Mat Min Exi Min Mat Fac Low Low Fac Ext Cet Arc Hub Fac Upp Upp Zhi Pro Fac Res Arm Lab Res Qua Sec Acc Total 16451 | 53 469 236 194 388 473 1395 403 72 1069 735 380 1382 235 1122 672 245 214 336 198 388 28 170 653 1730 2311 900 Wait 2702 | . 2 1 . 6 6 172 12 . 81 43 37 1147 12 148 367 38 . 5 14 . 1 . 31 34 532 13 Move 10957 | 41 388 213 192 321 387 914 344 70 755 468 259 179 203 775 299 184 177 294 145 323 25 142 476 1460 1336 587 Hop . | . . . . . . . . . . . . . . . . . . . . . . . . . . . Pick Up 288 | 4 19 2 . 7 21 33 6 . 31 8 16 9 3 25 1 3 7 3 2 1 . 4 18 27 36 2 Fast Attach 127 | 6 1 . . . 2 10 2 . 5 1 5 3 . 4 . . 7 . 3 3 . 9 15 15 30 6 Attach 125 | . 1 . . 7 6 11 4 . 8 1 4 1 . 10 . . 4 . 2 3 . 3 14 12 21 13 Detach 24 | . . . . . . . 2 . . . . . . . . . . . . 1 . 1 12 1 4 3 Swap 356 | . 4 2 1 6 10 54 9 1 40 23 10 8 3 28 2 2 3 9 1 8 1 . 9 27 74 21 Drop 400 | . 10 4 1 6 13 47 8 . 41 16 28 13 4 24 . 4 14 5 4 3 . 8 32 44 51 20 Fire 1182 | 2 39 13 . 22 27 132 12 1 101 42 12 22 7 85 2 14 . 20 27 45 1 3 44 104 198 207 Melee 112 | . . . . 12 . 19 4 . 4 . 9 . . 15 . . 2 . . . . . . 4 28 15 Ram 7 | . . . . . . . . . . . . . . . . . . . . . . . . . . 7 Kick . | . . . . . . . . . . . . . . . . . . . . . . . . . . . Crush 32 | . 5 1 . 1 1 3 . . 3 . . . 3 8 1 . . . . 1 . . 2 2 1 . Escape Stasis 6 | . . . . . . . . . . . . . . . . . . . . . . . . . . 6 Rewire 133 | . . . . . . . . . . 133 . . . . . . . . . . . . . . . . Trap . | . . . . . . . . . . . . . . . . . . . . . . . . . . . Miscellaneous . | . . . . . . . . . . . . . . . . . . . . . . . . . . . Route ------- -11/Scrapyard -10/Materials (discovered 3 exits: [*Mat x2] / [*Min]) -10/Mines -10/Exiles -9/Mines -8/Materials -7/Factory (discovered 2 exits: *Fac / [*Low]) -7/Lower Caves -7/Lower Caves -6/Factory (discovered 5 exits: *Fac / Low x2 / *Ext x2) -6/Extension (discovered 2 exits: *Fac / *Cet) -6/Cetus (discovered 2 exits: *Fac / [*Arc]) -6/Archives (discovered 3 exits: *Fac / *Hub x2) -6/Hub_04(d) -5/Factory (discovered 2 exits: *Upp x2) -5/Upper Caves -5/Upper Caves (discovered 2 exits: Fac / *Zhi) -5/Zhirov -4/Proximity Caves -4/Factory (discovered 2 exits: *Res x2) -3/Research -3/Armory -3/Lab -2/Research -2/Quarantine (discovered 2 exits: *Acc / *Sec) -2/Section 7 -1/Access History --------- Turn | Location | Event 40 | -11/Scrapyard | Discovered new exit (range 16) 85 | -11/Scrapyard | Entered Materials 317 | -10/Materials | Build established: Mutant 361 | -10/Materials | Discovered new exit (range 14) 465 | -10/Materials | Discovered new exit (range 15) 682 | -10/Materials | Discovered new exit (range 5) 856 | -10/Materials | Entered Mines 923 | -10/Mines | Met a Derelict bent on vengeance 951 | -10/Mines | Learned Materials garrison access intel 964 | -10/Mines | Learned location of Zion (-7) 1237 | -10/Mines | Deemed a non-threat by the Exiles lab entrance 1237 | -10/Mines | Discovered new exit (range 5) 1244 | -10/Mines | Entered Exiles 1281 | -10/Exiles | Met 8R-AWN 1310 | -10/Exiles | Met EX-HEX 1388 | -10/Exiles | Met EX-DEC 1427 | -10/Exiles | Met EX-BIN 1540 | -10/Exiles | Discovered new exit (range 10) 1553 | -10/Exiles | Entered Mines 1739 | -9/Mines | Assembled infested the area 1855 | -9/Mines | A weapon hastily lodged in a ceiling crevice suddenly fell to the ground 1959 | -9/Mines | Core integrity fell below 50% 2000 | -9/Mines | Core integrity fell below 20% 2178 | -9/Mines | Discovered new exit (range 3) 2204 | -9/Mines | Entered Materials 2204 | -8/Materials | Evolved 4 slots: Propulsion x1, Utility x3 2205 | -8/Materials | Loaded intel: 1 garrison access location 2508 | -8/Materials | Build established: Hauler-Mutant 2886 | -8/Materials | Discovered new exit (range 8) 2954 | -8/Materials | Entered Factory 2954 | -7/Factory | Evolved 2 slots: Propulsion x1, Utility x1 3145 | -7/Factory | Garrison activated, responded to threat 3181 | -7/Factory | Lost 3 parts (1n2w) 3185 | -7/Factory | Destroyed 7 combat bots 3257 | -7/Factory | Lost 3 parts (1p1n1u) 3259 | -7/Factory | Garrison activated, responded to threat 3569 | -7/Factory | Fabricated Hcp. Storage Unit (x1) 3623 | -7/Factory | Fabricated Hcp. Storage Unit? 3653 | -7/Factory | Local fabrication network quarantined 4003 | -7/Factory | Repaired Adv. Treads 4043 | -7/Factory | Repaired Imp. Light Armor Plating 4110 | -7/Factory | Discovered new exit (range 15) 4257 | -7/Factory | Discovered new exit (range 15) 4954 | -7/Factory | First assault squad dispatched 5123 | -7/Factory | Core integrity fell below 50% 5182 | -7/Factory | Entered Lower Caves 5868 | -7/Lower Caves | Discovered new exit (range 2) 5873 | -7/Lower Caves | Entered another Lower Caves area 5971 | -7/Lower Caves | Discovered new exit (range 5) 6003 | -7/Lower Caves | Entered Factory 6003 | -6/Factory | Evolved 2 slots: Power x1, Utility x1 6472 | -6/Factory | Destroyed 7 combat bots 6627 | -6/Factory | Discovered new exit (range 6) 6802 | -6/Factory | Fabricated Arm. Treads (x2) 7102 | -6/Factory | Identified exit to Lower Caves 7102 | -6/Factory | Identified exit to Extension 7123 | -6/Factory | Build established: Scavenger-Mutant 7515 | -6/Factory | Discovered new exit (range 9) 7830 | -6/Factory | Found Prototype Launcher 7858 | -6/Factory | Entered Extension 7860 | -6/Extension | Identified Scatter Rocket Array 7956 | -6/Extension | Rescued a captive Derelict 8047 | -6/Extension | Rescued A7 8150 | -6/Extension | Build established: Hauler-Mutant 8208 | -6/Extension | First assault squad dispatched 8258 | -6/Extension | Rescued a captive Derelict 8259 | -6/Extension | Rescued a captive Derelict 8485 | -6/Extension | Build established: Commander-Mutant 8661 | -6/Extension | Spotted B-75 Beast 8671 | -6/Extension | Allies destroyed B-75 Beast 8680 | -6/Extension | Spotted B-75 Beast 8689 | -6/Extension | Allies destroyed B-75 Beast 8758 | -6/Extension | Disrupted transfer network 8968 | -6/Extension | Discovered new exit (range 16) 8970 | -6/Extension | Discovered new exit (range 15) 8976 | -6/Extension | Destroyed 9 combat bots 9042 | -6/Extension | Build established: Scavenger-Mutant 9061 | -6/Extension | Entered Cetus 9061 | -6/Cetus | Accompanied by 1 ally 9066 | -6/Cetus | Acquired a Cetus Manufacturing Module code from A7 9085 | -6/Cetus | Spotted Cetus Guard 9085 | -6/Cetus | Spotted Cetus Guard 9091 | -6/Cetus | Allies destroyed Cetus Guard 9094 | -6/Cetus | Destroyed Cetus Guard 9094 | -6/Cetus | Spotted Cetus Guard 9097 | -6/Cetus | Destroyed Cetus Guard 9101 | -6/Cetus | Spotted Cetus Guard 9115 | -6/Cetus | Allies destroyed Cetus Guard 9223 | -6/Cetus | Started Cetus Manufacturing Module 9248 | -6/Cetus | Manufactured an Enhanced Grunt 9273 | -6/Cetus | Manufactured an Enhanced Grunt 9298 | -6/Cetus | Manufactured an Enhanced Grunt 9323 | -6/Cetus | Manufactured an Enhanced Grunt 9348 | -6/Cetus | Manufactured an Enhanced Grunt 9388 | -6/Cetus | Discovered new exit (range 16) 9422 | -6/Cetus | Spotted Cetus Guard 9423 | -6/Cetus | Spotted Cetus Guard 9427 | -6/Cetus | Spotted Cetus Guard 9428 | -6/Cetus | Allies destroyed Cetus Guard 9428 | -6/Cetus | Spotted Cetus Guard 9430 | -6/Cetus | Destroyed Cetus Guard 9433 | -6/Cetus | Destroyed Cetus Guard 9438 | -6/Cetus | Destroyed Cetus Guard 9451 | -6/Cetus | Discovered new exit (range 15) 9461 | -6/Cetus | Met Revision 17 9555 | -6/Cetus | Destroyed A7 9559 | -6/Cetus | Extracted ID and sensor layout for unrecognized location from A7's data core 9624 | -6/Cetus | Entered Archives 9624 | -6/Archives | Accompanied by 5 allies 9690 | -6/Archives | Found Prototype Device 9691 | -6/Archives | Identified Exp. Thermal Shield 9719 | -6/Archives | Discovered new exit (range 14) 9818 | -6/Archives | Discovered new exit (range 16) 11098 | -6/Archives | Discovered new exit (range 16) 11142 | -6/Archives | Entered Hub_04(d) 11142 | -6/Hub_04(d) | Accompanied by 4 allies 11431 | -6/Hub_04(d) | Discovered new exit (range 12) 11467 | -6/Hub_04(d) | Network Hub disabled 11492 | -6/Hub_04(d) | First assault squad dispatched 11508 | -6/Hub_04(d) | Entered Factory 11508 | -5/Factory | Accompanied by 1 ally 11508 | -5/Factory | Evolved 2 slots: Utility x2 11526 | -5/Factory | Identified exit to Upper Caves 12500 | -5/Factory | Repaired Broken Centrium Heavy Treads 12724 | -5/Factory | Garrison activated, responded to threat 13064 | -5/Factory | Repaired Centrium Heavy Treads 13259 | -5/Factory | Garrison activated, responded to threat 13376 | -5/Factory | Entered Upper Caves 13396 | -5/Upper Caves | Learned location of Armory (-3) 14269 | -5/Upper Caves | Learned Factory emergency access door positions 14285 | -5/Upper Caves | Discovered new exit (range 4) 14290 | -5/Upper Caves | Entered another Upper Caves area 14292 | -5/Upper Caves | Attracted the attention of an 0b10 checkpoint 14580 | -5/Upper Caves | Identified exit to Factory 14675 | -5/Upper Caves | Discovered new exit (range 6) 14697 | -5/Upper Caves | Learned location of 1 exit from Factory 14709 | -5/Upper Caves | Entered Zhirov 14709 | -5/Zhirov | Discovered new exit (range 3) 14742 | -5/Zhirov | Met Zhirov 14774 | -5/Zhirov | Learned location of Quarantine (-2) 14774 | -5/Zhirov | Learned location of Testing (-3) 14774 | -5/Zhirov | Learned location of Command (-1) 14792 | -5/Zhirov | Zhirov requested help retrieving the SGEMP Prototype 14820 | -5/Zhirov | Found Alien Artifact 14820 | -5/Zhirov | Identified Integrated Dissipator 14820 | -5/Zhirov | Installed Integrated Dissipator, increased core heat dissipation (+2%) 14984 | -5/Zhirov | Found Alien Artifact 15049 | -5/Zhirov | Entered Proximity Caves 15224 | -4/Proximity Caves | Learned Research stockpile data 15310 | -4/Proximity Caves | Spotted B-86 Titan 15333 | -4/Proximity Caves | Destroyed B-86 Titan 15656 | -4/Proximity Caves | Discovered exit to Factory (range 5) 15663 | -4/Proximity Caves | Entered Factory 15663 | -4/Factory | Evolved 2 slots: Power x1, Utility x1 15664 | -4/Factory | Identified exit to Research 15796 | -4/Factory | Found Hvy. Reflective Plating 16005 | -4/Factory | Discovered exit to Research (range 5) 16031 | -4/Factory | Entered Research 16031 | -3/Research | Evolved 2 slots: Utility x2 16231 | -3/Research | Revision forces began assault on 0b10 16256 | -3/Research | Met up with Revision 17++ 16313 | -3/Research | Discovered new exit (range 15) 16504 | -3/Research | Build established: Generator-Mutant 16593 | -3/Research | Found Prototype Processor 16593 | -3/Research | Identified Exp. Signal Interpreter 16731 | -3/Research | Research terminal network offline 16761 | -3/Research | Identified exit to Armory 16763 | -3/Research | Entered Armory 16810 | -3/Armory | Identified Transdimensional Reconstructor 16810 | -3/Armory | Warped through subspace to slip node 16810 | -3/Armory | Discovered new exit (range 1) 16810 | -3/Armory | Identified exit to Lab 16812 | -3/Armory | Entered Lab 16812 | -3/Lab | Discovered new exit (range 9) 16825 | -3/Lab | Identified exit to Research 16831 | -3/Lab | Hidden lab's door opened automatically 16831 | -3/Lab | Sensor layout match revealed 16832 | -3/Lab | Gained access to the hidden lab's interior 16833 | -3/Lab | Unable to decrypt terminal 16852 | -3/Lab | Found Alien Artifact 16852 | -3/Lab | Identified Core Reset Matrix 16852 | -3/Lab | Used Core Reset Matrix 16856 | -3/Lab | Sensed 3 artifacts in vicinity 16874 | -3/Lab | Found Transdimensional Reconstructor 16887 | -3/Lab | Found Integrated Reactor 16887 | -3/Lab | Installed Integrated Reactor, increased core energy generation (+2%) 16901 | -3/Lab | Found Core Expander 16901 | -3/Lab | Installed Core Expander, added new Utility slot 16930 | -3/Lab | Found Prototype Protection 16930 | -3/Lab | Identified Exp. Powered Armor 16936 | -3/Lab | Found Prototype Hackware 16944 | -3/Lab | Found Prototype Energy Gun 16944 | -3/Lab | Identified Hyp. EM Gauss Rifle 16954 | -3/Lab | Found Prototype Energy Cannon 16954 | -3/Lab | Identified Potential Cannon 16974 | -3/Lab | Unable to decrypt terminal 17080 | -3/Lab | Discovered exit to Research (range 6) 17089 | -3/Lab | Entered Research 17089 | -2/Research | Evolved 2 slots: Propulsion x2 17344 | -2/Research | Spotted B-90 Cyclops 17589 | -2/Research | First assault squad dispatched 17850 | -2/Research | Found Unknown Launcher 17850 | -2/Research | Identified Fusion Bomb Launcher 17987 | -2/Research | Discovered new exit (range 38) 18062 | -2/Research | Identified exit to Quarantine 18097 | -2/Research | Entered Quarantine 18098 | -2/Quarantine | Detected hypermatrix surge 18098 | -2/Quarantine | Sensed 16 artifacts in vicinity 18191 | -2/Quarantine | Found Subatomic Replicator 18274 | -2/Quarantine | Found Phase Armor 18635 | -2/Quarantine | Found Core Stripper 19196 | -2/Quarantine | Garrison activated, responded to threat 19215 | -2/Quarantine | Discovered new exit (range 6) 19265 | -2/Quarantine | Found Sigix Broadsword 19451 | -2/Quarantine | Found Transdimensional Reconstructor 19462 | -2/Quarantine | Found Dimensional Node Initializer 19568 | -2/Quarantine | Spotted Fortress 19618 | -2/Quarantine | Destroyed Fortress 19626 | -2/Quarantine | Found Prototype Reactor 19626 | -2/Quarantine | Identified Vortex Chain Reactor 19630 | -2/Quarantine | Found Vortex Chain Reactor 19776 | -2/Quarantine | Discovered new exit (range 5) 19780 | -2/Quarantine | Identified exit to Section 7 19784 | -2/Quarantine | Initialized slip node 19906 | -2/Quarantine | Found Prototype Device 19910 | -2/Quarantine | Identified Thermal Barrier 19918 | -2/Quarantine | Found Prototype Device 19918 | -2/Quarantine | Identified Exp. Force Field 19927 | -2/Quarantine | Found Prototype Device 19928 | -2/Quarantine | Identified EM Dispersion Field 20146 | -2/Quarantine | Found Hpw. Transdimensional Reconstructor 20156 | -2/Quarantine | Found Dimensional Node Initializer 20167 | -2/Quarantine | Found Hpw. Transdimensional Reconstructor 20170 | -2/Quarantine | Found Transdimensional Reconstructor 20416 | -2/Quarantine | Warped through subspace to slip node 20886 | -2/Quarantine | Met incapacitated Sigix Warrior 20886 | -2/Quarantine | Lockdown squad dispatched 20889 | -2/Quarantine | Acquired the access code to the Sigix quarantine chamber 20892 | -2/Quarantine | Unlocked Sigix quarantine chamber 20900 | -2/Quarantine | Warped through subspace to slip node 20902 | -2/Quarantine | Entered Section 7 20903 | -2/Section 7 | Sensed 25 artifacts in vicinity 21022 | -2/Section 7 | Spotted S7 Guard 21056 | -2/Section 7 | Destroyed S7 Guard 21063 | -2/Section 7 | Found Prototype Protection 21063 | -2/Section 7 | Identified Hvy. Regenerative Plating 21077 | -2/Section 7 | Found Integrated Heat Negator 21078 | -2/Section 7 | Installed Integrated Heat Negator, increased core heat dissipation (+2%) 21141 | -2/Section 7 | Identified Quantum Router 21198 | -2/Section 7 | Repaired EM Dispersion Field 21295 | -2/Section 7 | Found Core Reset Matrix 21507 | -2/Section 7 | Found Integrated Dissipator 21507 | -2/Section 7 | Installed Integrated Dissipator, increased core heat dissipation (+2%) 21541 | -2/Section 7 | Found Integrated Reactor 21541 | -2/Section 7 | Installed Integrated Reactor, increased core energy generation (+2%) 21668 | -2/Section 7 | Found Integrated Dissipator 21668 | -2/Section 7 | Installed Integrated Dissipator, increased core heat dissipation (+2%) 21851 | -2/Section 7 | Spotted S7 Guard 21871 | -2/Section 7 | Destroyed S7 Guard 21902 | -2/Section 7 | Found Core Membrane 21902 | -2/Section 7 | Installed Core Membrane, gained immunity to corruption 21925 | -2/Section 7 | Spotted S7 Guard 21946 | -2/Section 7 | Destroyed S7 Guard 21976 | -2/Section 7 | Found Integrated Singularity Reactor 21976 | -2/Section 7 | Installed Integrated Singularity Reactor, increased core energy generation (+2%) 22066 | -2/Section 7 | Spotted B-90 Cyclops 22119 | -2/Section 7 | Destroyed 7 combat bots 22156 | -2/Section 7 | Destroyed B-90 Cyclops 22167 | -2/Section 7 | Spotted S7 Guard 22196 | -2/Section 7 | Found Core Regenerator 22196 | -2/Section 7 | Used Core Regenerator, restored core integrity (+362) 22215 | -2/Section 7 | Spotted Alpha 7 22219 | -2/Section 7 | Warped through subspace 22557 | -2/Section 7 | Identified exit to Access 22747 | -2/Section 7 | Spotted B-90 Cyclops 22795 | -2/Section 7 | Destroyed B-90 Cyclops 22815 | -2/Section 7 | Found Unknown Device 22900 | -2/Section 7 | Found Prototype Processor 22900 | -2/Section 7 | Identified Exp. Melee Analysis Suite 22965 | -2/Section 7 | Initialized slip node 23152 | -2/Section 7 | First assault squad dispatched 23181 | -2/Section 7 | Spotted Executioner 23184 | -2/Section 7 | Warped through subspace to slip node 23452 | -2/Section 7 | Build established: Alien-Mutant 23770 | -2/Section 7 | Spotted Executioner 23777 | -2/Section 7 | Destroyed Executioner 23783 | -2/Section 7 | Destroyed Executioner 23936 | -2/Section 7 | Found Hpw. Transdimensional Reconstructor 23938 | -2/Section 7 | Found Transdimensional Reconstructor 23941 | -2/Section 7 | Found Transdimensional Reconstructor 24121 | -2/Section 7 | Found Sigix Quantum Sheargun 24127 | -2/Section 7 | Found Sigix Quantum Sheargun 24334 | -2/Section 7 | Spotted Executioner 24337 | -2/Section 7 | Spotted Executioner 24361 | -2/Section 7 | Destroyed Executioner 24370 | -2/Section 7 | Destroyed Executioner 24387 | -2/Section 7 | Found Prototype Device 24387 | -2/Section 7 | Identified Adv. Kinecellerator 24437 | -2/Section 7 | Activated Sigix Exoskeleton 24437 | -2/Section 7 | Received instructions from Sigix Warrior 24437 | -2/Section 7 | Warped through subspace to slip node 24474 | -2/Section 7 | Entered Access 24474 | -1/Access | Accompanied by 1 ally 24474 | -1/Access | Evolved 2 slots: Utility x1, Weapon x1 24478 | -1/Access | Identified Quantum Capacitor 24592 | -1/Access | Destroyed 7 combat bots 24644 | -1/Access | Spotted Executioner 24647 | -1/Access | Energy Cycler disabled 24650 | -1/Access | Allies destroyed Executioner 24683 | -1/Access | Garrison activated, responded to threat 24697 | -1/Access | Destroyed 21 combat bots 24762 | -1/Access | Warped through subspace 24903 | -1/Access | Warped through subspace 25081 | -1/Access | Spotted Striker 25093 | -1/Access | Destroyed Striker 25117 | -1/Access | Destroyed Investigator 25142 | -1/Access | Destroyed 11 combat bots 25177 | -1/Access | Spotted Executioner 25179 | -1/Access | Spotted Striker 25179 | -1/Access | Spotted Striker 25179 | -1/Access | Spotted Striker 25183 | -1/Access | Spotted Striker 25183 | -1/Access | Spotted Striker 25185 | -1/Access | Destroyed Executioner 25186 | -1/Access | Spotted Executioner 25189 | -1/Access | Destroyed Striker 25189 | -1/Access | Destroyed Striker 25194 | -1/Access | Allies destroyed Striker 25197 | -1/Access | Spotted Executioner 25200 | -1/Access | Destroyed Striker 25202 | -1/Access | Used Subatomic Replicator to replicate Transdimensional Reconstructor 25205 | -1/Access | Warped through subspace 25221 | -1/Access | Destroyed 16 combat bots 25245 | -1/Access | Allies destroyed Executioner 25249 | -1/Access | Spotted Investigator 25252 | -1/Access | Spotted Striker 25252 | -1/Access | Spotted Executioner 25255 | -1/Access | Warped through subspace 25273 | -1/Access | Spotted B-99 Colossus 25293 | -1/Access | Spotted Executioner 25360 | -1/Access | Spotted Striker 25449 | -1/Access | Spotted B-99 Colossus 25455 | -1/Access | Spotted B-99 Colossus 25471 | -1/Access | Core integrity fell below 50% 25477 | -1/Access | Emitted hypermatrix ping 25478 | -1/Access | Core integrity fell below 20% 25482 | -1/Access | Assembled emerged from beneath the floor 25489 | -1/Access | Destroyed by P-80 Master with Gamma Rifle Last Messages --------------- 25482_ as-29326 destroyed. 25482_ Slug penetrates Wall. 25482_ Slug penetrates as-22926. 25482_ as-22926 suffers critical hit. 25482_ as-22926 destroyed. 25484_ H-88 Terminator destroyed. 25484_ Slug penetrates H-88 Terminator. 25484_ Slug penetrates Wall. 25484_ Slug penetrates B-99 Colossus. 25484_ as-46739 destroyed. 25484_ U-05 Engineer lays Concrete. 25485_ The unstable cave ceiling collapses. 25485_ Unknown Leg crushed. 25485_ P-80 Master resets B-99 Colossus, system corruption cleaned. 25486_ as-28265 destroyed. 25486_ Slug penetrates Y-72 Warden. 25486_ Slammed into U-05 Engineer. 25487_ as-11459 destroyed. 25488_ Acquired 8 matter. 25489_ Core Membrane filtered system corruption (1). Map ----- +----------------------------------------------------+ | ??????????????????# # #?????????? | | ??????????????????# + #?????????? | | ??????????????????# # #?????????? | | ??????????????????# # " #?????????? | | ??????????????????# #? """ ??????????? | | ??????????????????####### #? """ ?????????? ???? | | ????????????????????????# #?? " ?????????? ??? | | ??????????????????????### #########??????? ???? | | ??????????????????????# ######??????? ??? | | ???????????????????#### ####### ???? | | ???????????????????# / ???????? | | ???????????????????# ## ##?????????? | | ???????????????????#??# ### ! #??????????? | | ??????????????????????###+###?# =% #??????????? | | ??????????????????????????????# /!! ###????###?? | | ??????????????????????????????# ^!! #?? #?? | | ??????????????????????????????# ! # *#?? | | ??????????????????????????????# + #?? | | ??????????????????????????????# # #?? | | ??????????????????????????????# #?? #?? | | ?????????????????###+####?????##### ###???? #?? | | ?????????????????# #?????????# #??????##### | | ?????????????????# * #?????????# #???? | | ?????????????????# #####?????# #?? | | ?????????????????# !]!#/ ####### # | | ?????????????????#] !]!#@* u + | | ??????????????????? !! #u% ########### | | ??????????????????????#%[####???????????? | | ??????????????????????#!=##???????????????? | | ?????????????????????##%p%#??????????????????##### | | ?????????????????????#[=B%#??????????????????????? | | ?????????????????????#hp*!#??????????????????????? | | ?????????????????????#%*!=#??????????????????????? | | ?????????????????????#=!%##??????????????????????? | | ?????????????????????#!!=#???????????????????????? | | ?????????????????????#%[=#???????????????????????? | | ?????????????????????# %%#???????????????????????? | | ?????????????????????# [#???????????????????????? | | ?????????????????????" "???????????????????????? | | ?????????????????????" "???????????????????????? | | ?????????????????????" "???????????????????????? | | ?????????????????????# #???????????????????????? | | ?????????????????????# #???????????????????????? | | ?????????????????????# #???????????????????????? | | ?????????????????????# #???????????????????????? | | ?????????????????????# #???????????????????????? | | ?????????????????????# ???????????????????????? | | ?????????????????????# #??????????????????????? | | ?????????????????????# #??????????????????????? | | ?????????????????????######??????????????????????? | +----------------------------------------------------+ Best States ------------- Heat Dissipation 152 Energy Generation 119 Energy Capacity 1625 Matter Stores 300 Matter Capacity 300 Sight Range 16 Robot Scan Range 16 Terrain Scan Density 10 Jamming Range 12 Armor Coverage 2000 Resistance: KI 20 Resistance: TH 50 Resistance: EM 75 Propulsion Shielding 66 Weapon Shielding 90 Evasion (%) 50 Target Analysis 8 Core Analysis 8 Recoil Reduction 6 Particle Charging 15 Kinecelleration 30 Offensive Hacking 14 Defensive Hacking 25 Item Schematics ----------------- None Robot Schematics ------------------ None Fabricated ------------ Hcp. Storage Unit | x1 | -7/Factory Hcp. Storage Unit | x1 | -7/Factory Arm. Treads | x2 | -6/Factory Alien Tech Used ----------------- Integrated Dissipator Transdimensional Reconstructor Core Reset Matrix Integrated Reactor Core Expander Phase Armor Core Stripper Dimensional Node Initializer Sigix Broadsword Integrated Heat Negator Core Membrane Integrated Singularity Reactor Core Regenerator High-powered Transdimensional Reconstructor Sigix Quantum Sheargun Subatomic Replicator Achievements -------------- Artifact Hunter Rincewind Challenges ------------ None Game ------ Seed QuantumDiametricBlade Manual? 0 Play Time 03:12:17 Cumulative 534.0 hours Start 2020.05.12 @ 12:23:07 End 2020.05.12 @ 15:36:14 Sessions 1 Manual Loads 0 Difficulty Rogue Special Mode None Game No. 855 Rogue 855 Adventurer 0 Explorer 0 Win Type - Total 49 Types 31/1/6/8/3/0/0 Lore% 94 Gallery% 93 Achievement% 82 Wizard Run 0 Options --------- ASCII 1 Keyboard 0 Movement Numpad Keybinds 0 Fullscreen 0 Font 14/SmallcapsGlow Map View 76x50 Tactical HUD 1 Map Filters NONE Filters NONE Steam 1 RUN: 6897f89c-ab2a-4c0c-90c9-1aa430e8fe76